bitfinex-derivatives/quotes_BNBF0:USTF0_20250907
["timestamp","ask_amount","ask_price","bid_price","bid_amount"]
[1757206273887,0.71033663,865.18,864.15,1.56261]
[1757206274192,0.71033663,865.17,864.15,1.56261]
[1757206274388,0.71033663,865.16,864.15,1.56261]
[1757206274589,0.71033663,865.15,864.15,1.56261]
[1757206274788,0.71033663,865.14,864.15,1.56261]
[1757206274994,0.71033663,865.13,864.15,1.56261]
[1757206275193,0.71033663,865.12,864.14,1.56261]
[1757206275393,0.71033663,865.11,864.14,1.56261]
[1757206275692,0.71033663,865.1,864.14,1.56261]
[1757206275889,0.71033663,865.09,864.14,1.56261]
[1757206276092,0.71033663,865.08,864.14,1.56261]
[1757206276391,0.71033663,865.07,864.14,1.56261]
[1757206276590,0.71033663,865.06,864.14,1.56261]
[1757206276792,0.71033663,865.05,864.14,1.56261]
[1757206276992,0.71033663,865.04,864.14,1.56261]
[1757206277189,0.71033663,865.03,864.14,1.56261]
[1757206277388,0.71033663,865.02,864.14,1.56261]
[1757206277592,0.71033663,865.01,864.14,1.56261]
[1757206277889,0.71033663,865.0,864.14,1.56261]
[1757206278091,0.7786686,865.34,864.14,1.56261]
[1757206278290,0.70987239,865.33,864.14,1.56261]
[1757206278487,0.70987239,865.32,864.14,1.56261]
[1757206278690,0.7786686,865.28,864.21,1.56261]
[1757206278890,0.70987239,865.27,864.21,1.56261]
[1757206279091,0.70987239,865.26,864.21,1.56261]
[1757206279291,0.70987239,865.25,864.21,1.56261]
[1757206279493,0.70987239,865.24,864.21,1.56261]
[1757206279689,0.70987239,865.23,864.21,1.56261]
[1757206279893,0.70987239,865.22,864.21,1.56261]
[1757206280091,0.70987239,865.21,864.21,1.56261]
[1757206280392,0.70987239,865.2,864.21,1.56261]
[1757206280590,0.70987239,865.19,864.21,1.56261]
[1757206280895,0.70987239,865.18,864.21,1.56261]
[1757206281093,0.70987239,865.17,864.21,1.56261]
[1757206281292,0.70987239,865.16,864.21,1.56261]
[1757206281492,0.70987239,865.15,864.21,1.56261]
[1757206281694,0.70987239,865.14,864.21,1.56261]
[1757206281895,0.70987239,865.13,864.21,1.56261]
[1757206282192,0.70987239,865.12,864.21,1.56261]
[1757206282410,0.70987239,865.11,864.21,1.56261]
[1757206282593,0.70987239,865.1,864.21,1.56261]
[1757206282791,0.70987239,865.09,864.21,1.56261]
[1757206282992,0.7786686,865.27,864.21,1.56261]
[1757206282993,0.70987239,865.08,864.21,1.56261]
[1757206283196,0.70987239,865.07,864.21,1.56261]
[1757206283394,0.70987239,865.06,864.21,1.56261]
[1757206283597,0.70987239,865.05,864.21,1.56261]
[1757206283897,0.70987239,865.04,864.21,1.56261]
[1757206284193,0.70987239,865.03,864.21,1.56261]
[1757206284398,0.70987239,865.02,864.21,1.56261]
[1757206284600,0.7786686,865.27,864.21,1.56261]
[1757206284800,0.70976113,865.26,864.21,1.56261]
[1757206285096,0.70976113,865.25,864.21,1.56261]
[1757206285302,0.70976113,865.24,864.21,1.56261]
[1757206285502,0.70976113,865.23,864.21,1.56261]
[1757206285697,0.70976113,865.22,864.21,1.56261]
[1757206285900,0.70976113,865.21,864.21,1.56261]
[1757206286102,0.70976113,865.2,864.21,1.56261]
[1757206286300,0.70976113,865.19,864.21,1.56261]
[1757206286500,0.70976113,865.18,864.21,1.56261]
[1757206286706,0.70976113,865.17,864.21,1.56261]
[1757206287002,0.70976113,865.16,864.21,1.56261]
[1757206287208,0.70976113,865.15,864.21,1.56261]
[1757206287403,0.70976113,865.14,864.21,1.56261]
[1757206287603,0.70976113,865.13,864.21,1.56261]
[1757206287804,0.70976113,865.12,864.21,1.56261]
[1757206288107,0.70976113,865.11,864.21,1.56261]
[1757206288307,0.70976113,865.1,864.21,1.56261]
[1757206288608,0.70976113,865.09,864.21,1.56261]
[1757206288808,0.70976113,865.08,864.21,1.56261]
[1757206289107,0.70976113,865.07,864.21,1.56261]
[1757206289408,0.70976113,865.06,864.21,1.56261]
[1757206289604,0.70976113,865.05,864.21,1.56261]
[1757206289808,0.70976113,865.04,864.21,1.56261]
[1757206290009,0.70976113,865.03,864.21,1.56261]
[1757206290205,0.70976113,865.02,864.21,1.56261]
[1757206290405,0.7786686,865.27,864.21,1.56261]
[1757206290610,0.70975365,865.26,864.21,1.56261]
[1757206290808,0.7786686,865.27,864.21,1.56261]
[1757206290809,0.70975365,865.25,864.21,1.56261]
[1757206291007,0.70975365,865.24,864.21,1.56261]
[1757206291212,0.70975365,865.23,864.21,1.56261]
[1757206291411,0.70975365,865.22,864.21,1.56261]
[1757206291712,0.70975365,865.21,864.21,1.56261]
[1757206291910,0.70975365,865.2,864.21,1.56261]
[1757206292115,0.70975365,865.19,864.21,1.56261]
[1757206292410,0.70975365,865.18,864.21,1.56261]
[1757206292615,0.70975365,865.17,864.21,1.56261]
[1757206292813,0.70975365,865.16,864.21,1.56261]
[1757206293016,0.70975365,865.15,864.21,1.56261]
[1757206293217,0.70975365,865.14,864.21,1.56261]
[1757206293413,0.70975365,865.13,864.07,1.56261]
[1757206293617,0.70975365,865.12,864.1,1.56261]
[1757206293816,0.20143785,865.35,864.1,1.56261]
[1757206294014,0.70994017,865.34,864.1,1.56261]
[1757206294217,0.70994017,865.33,864.1,1.56261]
[1757206294413,0.70994017,865.32,864.1,1.56261]
[1757206294612,0.70994017,865.31,864.1,1.56261]
[1757206294816,0.70994017,865.3,864.1,1.56261]
[1757206295017,0.70994017,865.29,864.09,1.56261]
[1757206295214,0.70994017,865.28,864.09,1.56261]
[1757206295417,0.70994017,865.27,864.09,1.56261]
[1757206295615,0.70994017,865.26,864.09,1.56261]
[1757206295919,0.70994017,865.25,864.09,1.56261]
[1757206296117,0.70994017,865.24,864.09,1.56261]
[1757206296316,0.70994017,865.23,864.09,1.56261]
[1757206296518,0.70994017,865.22,864.09,1.56261]
[1757206296715,0.70994017,865.21,864.09,1.56261]
[1757206296918,0.70994017,865.2,864.09,1.56261]
[1757206297116,0.70994017,865.19,864.09,1.56261]
[1757206297316,0.70994017,865.18,864.09,1.56261]
[1757206297616,0.70994017,865.17,864.09,1.56261]
[1757206297815,0.70994017,865.16,864.09,1.56261]
[1757206298020,0.70994017,865.15,864.09,1.56261]
[1757206298220,0.70994017,865.14,864.09,1.56261]
[1757206298417,0.70994017,865.13,864.09,1.56261]
[1757206298621,0.70994017,865.12,864.09,1.56261]
[1757206298821,0.20143785,865.35,864.09,1.56261]
[1757206299019,0.71005071,865.34,864.09,1.56261]
[1757206299221,0.71005071,865.33,864.09,1.56261]
[1757206299521,0.71005071,865.32,864.09,1.56261]
[1757206299721,0.71005071,865.31,864.09,1.56261]
[1757206299919,0.71005071,865.3,864.09,1.56261]
[1757206300119,0.71005071,865.29,864.09,1.56261]
[1757206300323,0.71005071,865.28,864.09,1.56261]
[1757206300521,0.71005071,865.27,864.09,1.56261]
[1757206300724,0.71005071,865.26,864.09,1.56261]
[1757206301024,0.71005071,865.25,864.11,1.56261]
[1757206301220,0.71005071,865.24,864.11,1.56261]
[1757206301524,0.71005071,865.23,864.11,1.56261]
[1757206301725,0.71005071,865.22,864.11,1.56261]
[1757206302025,0.71005071,865.21,864.11,1.56261]
[1757206302226,0.71005071,865.2,864.12,1.56261]
[1757206302525,0.71005071,865.19,864.12,1.56261]
[1757206302724,0.71005071,865.18,864.12,1.56261]
[1757206302922,0.71005071,865.17,864.12,1.56261]
[1757206303121,0.71016655,865.16,864.12,1.56261]
[1757206303422,0.71016655,865.15,864.28,1.56261]
[1757206303626,0.71016655,865.14,864.28,1.56261]
[1757206303823,0.20143785,865.35,864.28,1.56261]
[1757206304123,0.7101654,865.34,864.28,1.56261]
[1757206304323,0.7101654,865.33,864.29,1.56261]
[1757206304524,0.7101654,865.32,864.29,1.56261]
[1757206304727,0.7101654,865.31,864.29,1.56261]
[1757206305027,0.7101654,865.3,864.31,1.56261]
[1757206305223,0.7101654,865.29,864.34,1.56261]
[1757206305427,0.7101654,865.28,864.34,1.56261]
[1757206305624,0.7101654,865.27,864.34,1.56261]
[1757206305924,0.7101654,865.26,864.34,1.56261]
[1757206306224,0.7101654,865.25,864.34,1.56261]
[1757206306424,0.7101654,865.24,864.34,1.56261]
[1757206306624,0.7101654,865.23,864.34,1.56261]
[1757206306823,0.7101654,865.22,864.34,1.56261]
[1757206307026,0.7101654,865.21,864.32,1.56261]
[1757206307227,0.7101654,865.2,864.33,1.56261]
[1757206307526,0.7101654,865.19,864.33,1.56261]
[1757206307725,0.7101654,865.18,864.33,1.56261]
[1757206307925,0.7101654,865.17,864.33,1.56261]
[1757206308123,0.7101654,865.16,864.34,1.56261]
[1757206308326,0.7101654,865.15,864.34,1.56261]
[1757206308526,0.7101654,865.14,864.34,1.56261]
[1757206308725,0.7101654,865.13,864.34,1.56261]
[1757206308923,0.20143785,865.35,864.34,1.56261]
[1757206309122,0.71038753,865.34,864.34,1.56261]
[1757206309325,0.71038753,865.33,864.34,1.56261]
[1757206309529,0.71038753,865.32,864.34,1.56261]
[1757206309829,0.71038753,865.31,864.34,1.56261]
[1757206310028,0.71038753,865.3,864.34,1.56261]
[1757206310229,0.71038753,865.29,864.34,1.56261]
[1757206310425,0.71038753,865.28,864.34,1.56261]
[1757206310625,0.71038753,865.27,864.34,1.56261]
[1757206310824,0.20143785,865.35,864.34,1.56261]
[1757206310825,0.71038753,865.26,864.34,1.56261]
[1757206311027,0.71038753,865.25,864.34,1.56261]
[1757206311227,0.71038753,865.24,864.34,1.56261]
[1757206311430,0.71038753,865.23,864.34,1.56261]
[1757206311633,0.71038753,865.22,864.34,1.56261]
[1757206311829,0.71038753,865.21,864.34,1.56261]
[1757206312029,0.71038753,865.2,864.34,1.56261]
[1757206312331,0.71038753,865.19,864.34,1.56261]
[1757206312633,0.71038753,865.18,864.34,1.56261]
[1757206312833,0.71038753,865.17,864.34,1.56261]
[1757206313029,0.71038753,865.16,864.34,1.56261]
[1757206313330,0.71038753,865.15,864.34,1.56261]
[1757206313633,0.71038753,865.14,864.34,1.56261]
[1757206313832,0.71038753,865.13,864.34,1.56261]
[1757206314034,0.71038753,865.12,864.34,1.56261]
[1757206314232,0.71038753,865.11,864.34,1.56261]
[1757206314431,0.71038753,865.11,863.71,2.6015819]
[1757206314432,0.71038753,865.1,864.33,1.56261]
[1757206314629,0.71038753,865.09,864.33,1.56261]
[1757206314929,0.71038753,865.08,864.33,1.56261]
[1757206315131,0.20143785,865.35,864.33,1.56261]
[1757206315330,0.71081804,865.34,864.34,1.56261]
[1757206315530,0.71081804,865.33,864.34,1.56261]
[1757206315730,0.71081804,865.32,864.34,1.56261]
[1757206315930,0.71081804,865.31,864.34,1.56261]
[1757206316233,0.71081804,865.3,864.34,1.56261]
[1757206316434,0.71081804,865.29,864.34,1.56261]
[1757206316636,0.71081804,865.28,864.34,1.56261]
[1757206316831,0.71081804,865.27,864.34,1.56261]
[1757206317032,0.71081804,865.26,864.34,1.56261]
[1757206317331,0.71081804,865.25,864.34,1.56261]
[1757206317635,0.71081804,865.24,864.34,1.56261]
[1757206317934,0.71081804,865.23,864.34,1.56261]
[1757206318135,0.71081804,865.22,864.34,1.56261]
[1757206318431,0.71081804,865.21,864.34,1.56261]
[1757206318634,0.71081804,865.2,864.34,1.56261]
[1757206318935,0.71081804,865.19,864.34,1.56261]
[1757206319134,0.71081804,865.19,863.83,2.6015819]
[1757206319135,0.71081804,865.18,864.33,1.56261]
[1757206319334,0.71081804,865.17,864.33,1.56261]
[1757206319534,0.71081804,865.16,864.33,1.56261]
[1757206319734,0.71081804,865.15,864.33,1.56261]
[1757206320031,0.71081804,865.14,864.33,1.56261]
[1757206320332,0.71081804,865.13,864.33,1.56261]
[1757206320536,0.71081804,865.12,864.21,1.56261]
[1757206320835,0.71081804,865.11,864.2,1.56261]
[1757206321036,0.71081804,865.1,864.2,1.56261]
[1757206321230,0.71081804,865.09,864.2,1.56261]
[1757206321435,0.71081804,865.08,864.2,1.56261]
[1757206321630,0.71081804,865.07,864.2,1.56261]
[1757206321931,0.71081804,865.06,864.2,1.56261]
[1757206322134,0.71081804,865.05,864.21,1.56261]
[1757206322334,0.20143785,865.35,864.21,1.56261]
[1757206322534,0.71100506,865.34,864.21,1.56261]
[1757206322829,0.71100506,865.33,864.21,1.56261]
[1757206323033,0.71100506,865.32,864.21,1.56261]
[1757206323233,0.71100506,865.31,864.2,1.56261]
[1757206323432,0.71100506,865.3,864.2,1.56261]
[1757206323634,0.71100506,865.29,864.2,1.56261]
[1757206323832,0.71100506,865.28,864.2,1.56261]
[1757206324034,0.71100506,865.27,864.2,1.56261]
[1757206324231,0.71100506,865.26,864.21,1.56261]
[1757206324435,0.71100506,865.25,864.21,1.56261]
[1757206324637,0.71100506,865.24,864.21,1.56261]
[1757206324836,0.71100506,865.23,864.21,1.56261]
[1757206325034,0.71100506,865.22,864.21,1.56261]
[1757206325333,0.201509,864.99,864.21,1.56261]
[1757206327538,0.201509,864.99,864.22,1.56261]
[1757206328634,0.201509,864.99,864.21,1.56261]
[1757206329039,0.201509,864.99,864.22,1.56261]
[1757206329641,0.201509,864.99,864.23,1.56261]
[1757206330337,0.201509,864.99,864.33,1.56261]
[1757206330841,0.201509,864.99,864.33,0.4750895]
[1757206345251,0.201509,864.99,864.33,1.5176433]
[1757206350058,0.201509,864.99,864.34,1.0425538]
[1757206350759,0.201509,864.99,864.34,2.607289]
[1757206361670,0.201509,864.99,864.34,1.0425538]
[1757206362271,0.201509,864.99,864.34,2.607289]
[1757206366677,0.201509,864.99,864.32,2.607289]
[1757206367373,0.201509,864.99,864.33,2.607289]
[1757206372381,0.201509,864.99,864.31,2.607289]
[1757206373281,0.201509,864.99,864.3,2.607289]
[1757206390690,0.201509,864.99,864.3,1.1569901]
[1757206392694,0.201509,864.99,864.31,1.0425538]
[1757206396399,0.201509,864.99,864.25,1.0425538]
[1757206400105,0.201509,864.99,864.19,1.0425538]
[1757206402307,0.201509,864.99,864.11,1.0425538]
[1757206407711,0.201509,864.99,863.38,2.6015819]
[1757206407712,0.201509,864.99,864.1,1.0425538]
[1757206410816,0.201509,864.99,864.11,1.0425538]
[1757206412317,0.201509,864.99,864.11,2.6049274]
[1757206427830,0.201509,864.99,864.1,1.0425538]
[1757206429426,0.201509,864.99,864.1,2.6049274]
[1757206432132,0.201509,864.99,864.09,2.6049274]
[1757206433236,0.201509,864.99,864.09,1.0425538]
[1757206436333,0.201509,864.99,864.1,1.0425538]
[1757206437537,0.201509,864.99,864.1,2.6049274]
[1757206442343,0.201509,864.99,864.1,1.0425538]
[1757206442743,0.201509,864.99,864.1,2.6049274]
[1757206447240,0.201509,864.99,864.1,1.0425538]
[1757206447444,0.201509,864.99,864.1,2.6049274]
[1757206451250,0.201509,864.99,863.89,1.0425538]
[1757206454153,0.201509,864.99,863.88,1.0425538]
[1757206454454,0.201509,864.99,863.89,1.0425538]
[1757206454650,0.201509,864.99,863.92,1.0425538]
[1757206454851,0.201509,864.99,863.91,1.0425538]
[1757206455550,0.201509,864.99,863.92,1.0425538]
[1757206455851,0.201509,864.99,863.91,1.0425538]
[1757206456250,0.201509,864.99,863.97,1.0425538]
[1757206457951,0.201509,864.99,863.93,1.0425538]
[1757206459256,0.77833476,864.97,863.92,2.6049274]
[1757206459456,0.77833476,864.96,863.92,2.6049274]
[1757206460357,0.77833476,864.97,863.92,2.6049274]
[1757206460557,0.77833476,864.96,863.92,2.6049274]
[1757206460858,0.77833476,864.97,863.92,2.6049274]
[1757206461157,0.77833476,864.98,863.92,2.6049274]
[1757206462355,0.97984376,864.99,863.92,2.6049274]
[1757206464258,0.201509,864.99,863.92,2.6049274]
[1757206469260,0.97984376,864.99,863.92,2.6049274]
[1757206470759,0.77833476,864.98,863.92,2.6049274]
[1757206471162,0.97984376,864.99,863.92,2.6049274]
[1757206472259,0.77833476,864.98,863.92,2.6049274]
[1757206472463,0.97984376,864.99,863.92,2.6049274]
[1757206474863,0.201509,864.99,863.92,2.6049274]
[1757206475567,0.201509,864.99,863.88,1.0425538]
[1757206477867,0.201509,864.99,863.87,1.0425538]
[1757206478867,0.77833476,864.93,863.66,1.0425538]
[1757206479171,0.77833476,864.89,863.62,1.0425538]
[1757206479471,0.77833476,864.86,863.62,1.0425538]
[1757206480272,0.77833476,864.88,863.62,1.0425538]
[1757206481275,0.77833476,864.89,863.62,1.0425538]
[1757206482373,0.77833476,864.9,863.62,1.0425538]
[1757206482869,0.77833476,864.87,863.62,1.0425538]
[1757206483169,0.77833476,864.88,863.62,1.0425538]
[1757206485272,0.77833476,864.89,863.62,1.0425538]
[1757206486977,0.77833476,864.89,863.61,1.0425538]
[1757206487173,0.77833476,864.9,863.6,1.0425538]
[1757206488078,0.77833476,864.9,863.59,1.0425538]
[1757206488777,0.77833476,864.84,863.62,1.0425538]
[1757206490082,0.77833476,864.81,863.62,1.0425538]
[1757206490382,0.77833476,864.82,863.62,1.0425538]
[1757206492083,0.77833476,864.81,863.62,1.0425538]
[1757206492384,0.77833476,864.82,863.62,1.0425538]
[1757206496187,0.77833476,864.95,863.5,1.0425538]
[1757206496486,0.77833476,864.93,863.49,1.0425538]
[1757206496686,0.77833476,864.94,863.5,1.0425538]
[1757206498985,0.77833476,864.95,863.48,1.0425538]
[1757206499189,0.77833476,864.9,863.43,1.0425538]
[1757206499385,0.77833476,864.91,863.42,1.0425538]
[1757206500793,0.77833476,864.97,863.34,1.0425538]
[1757206501090,0.77833476,864.97,863.35,1.0425538]
[1757206501591,0.77833476,864.97,863.34,1.0425538]
[1757206502189,0.77833476,864.97,863.35,1.0425538]
[1757206502392,0.77833476,864.97,863.34,1.0425538]
[1757206502887,0.77833476,864.96,863.34,1.0425538]
[1757206503289,0.77833476,864.97,863.35,1.0425538]
[1757206503492,0.77833476,864.97,863.34,1.0425538]
[1757206504287,0.77833476,864.97,863.35,1.0425538]
[1757206504489,0.77833476,864.97,863.34,1.0425538]
[1757206505188,0.77833476,864.97,863.35,1.0425538]
[1757206506094,0.77833476,864.94,863.38,1.0425538]
[1757206507395,0.77833476,864.94,863.39,1.0425538]
[1757206508096,0.77833476,864.94,863.4,1.0425538]
[1757206508393,0.77833476,864.94,863.39,1.0425538]
[1757206508997,0.77833476,864.93,863.41,1.0425538]
[1757206509197,0.77833476,864.92,863.42,1.0425538]
[1757206509498,0.77833476,864.91,863.44,1.0425538]
[1757206510195,0.77833476,864.91,863.45,1.0425538]
[1757206510398,0.77833476,864.91,863.44,1.0425538]
[1757206510599,0.77833476,864.9,863.45,1.0425538]
[1757206510801,0.77833476,864.81,863.56,1.0425538]
[1757206511300,0.77833476,864.8,863.56,1.0425538]
[1757206512499,0.77833476,864.79,863.56,1.0425538]
[1757206512998,0.77833476,864.79,863.55,1.0425538]
[1757206513703,0.77833476,864.77,863.55,1.0425538]
[1757206516302,0.77833476,864.76,863.55,1.0425538]
[1757206517799,0.77833476,864.76,863.54,1.0425538]
[1757206518300,0.77833476,864.75,863.54,1.0425538]
[1757206519403,0.77833476,864.73,863.54,1.0425538]
[1757206521309,0.77833476,864.72,863.54,1.0425538]
[1757206522305,0.77833476,864.72,863.54,2.6049274]
[1757206523107,0.77833476,864.74,863.54,1.0425538]
[1757206523610,0.77833476,864.76,863.54,1.0425538]
[1757206525513,0.20166022,864.46,863.54,1.0425538]
[1757206527014,0.20166022,864.46,863.55,1.0425538]
[1757206528613,0.20166022,864.46,863.54,1.0425538]
[1757206533218,0.20166022,864.46,863.54,2.6049274]
[1757206534416,0.20166022,864.46,863.55,2.6049274]
[1757206537221,0.20166022,864.46,863.55,1.1533626]
[1757206537921,0.70213846,864.45,863.55,1.1533626]
[1757206538119,0.70259381,864.44,863.55,1.1533626]
[1757206538317,0.70259381,864.43,863.55,1.1533626]
[1757206538516,0.70259381,864.42,863.55,1.1533626]
[1757206538718,0.70259381,864.41,863.55,1.1533626]
[1757206538920,0.70259381,864.4,863.55,1.1533626]
[1757206539118,0.70259381,864.39,863.55,1.1533626]
[1757206539322,0.70259381,864.38,863.55,1.1533626]
[1757206539519,0.70259381,864.37,863.14,2.6015819]
[1757206539820,0.20166022,864.46,863.12,2.6015819]
[1757206540223,0.20166022,864.46,863.09,2.6015819]
[1757206540723,0.20166022,864.46,863.56,0.78299993]
[1757206541225,0.20166022,864.46,863.59,0.78299993]
[1757206541429,0.20166022,864.46,863.68,0.78299993]
[1757206541627,0.20166022,864.46,863.82,0.78299993]
[1757206542029,0.20166022,864.46,863.83,0.78299993]
[1757206542531,0.20166022,864.46,863.87,0.78299993]
[1757206542728,0.20166022,864.46,863.86,0.78299993]
[1757206545333,0.20166022,864.46,863.87,0.78299993]
[1757206545734,0.20166022,864.46,863.86,0.78299993]
[1757206560839,0.20166022,864.46,863.87,0.78299993]
[1757206562442,0.20166022,864.46,863.87,2.34272583]
[1757206565746,0.20166022,864.46,863.87,0.78299993]
[1757206567449,0.20166022,864.46,863.87,1.82212273]
[1757206568151,0.20166022,864.46,863.87,3.38184863]
[1757206568450,0.20166022,864.46,863.87,1.82212273]
[1757206575052,0.20166022,864.46,863.87,3.38184863]
[1757206586658,0.20166022,864.46,863.87,1.82212273]
[1757206588558,0.78030845,865.16,863.87,1.82212273]
[1757206589362,0.78030845,865.15,863.87,1.82212273]
[1757206591163,0.78030845,865.14,863.87,1.82212273]
[1757206592263,0.2015732,864.83,863.87,1.82212273]
[1757206595067,0.2015732,864.83,863.87,3.38184863]
[1757206602466,0.2015732,864.83,863.87,1.93081485]
[1757206616176,0.2015732,864.83,863.49,2.6015819]
[1757206616177,0.2015732,864.83,863.68,1.5597259]
[1757206616376,0.2015732,864.83,863.62,1.5597259]
[1757206616580,0.2015732,864.83,863.61,1.5597259]
[1757206617280,0.2015732,864.83,863.6,1.5597259]
[1757206617879,0.2015732,864.83,863.79,1.5597259]
[1757206618082,0.2015732,864.83,863.97,1.5597259]
[1757206620580,0.2015732,864.83,864.02,1.5597259]
[1757206623784,0.2015732,864.83,863.17,2.6015819]
[1757206623785,0.2015732,864.83,864.06,1.5597259]
[1757206623986,0.2015732,864.83,864.09,1.5597259]
[1757206632586,0.2015732,864.83,864.09,2.6010046]
[1757206641898,0.2015732,864.83,864.1,2.6010046]
[1757206652505,0.2015732,864.83,864.09,2.6010046]
[1757206662512,0.2015732,864.83,864.09,3.38156461]
[1757206684924,0.2015732,864.83,864.09,1.93091008]
[1757206686426,0.2015732,864.83,864.05,1.82183871]
[1757206686821,0.2015732,864.83,863.99,1.82183871]
[1757206687028,0.2015732,864.83,863.97,1.82183871]
[1757206692633,0.2015732,864.83,864.0,1.82183871]
[1757206692934,0.2015732,864.83,864.06,1.82183871]
[1757206693334,0.2015732,864.83,864.07,1.82183871]
[1757206695036,0.2015732,864.83,864.1,1.82183871]
[1757206698836,0.2015732,864.83,864.14,1.82183871]
[1757206704742,0.2015732,864.83,864.14,3.3861655]
[1757206707943,0.2015732,864.83,864.18,3.3861655]
[1757206708444,0.2015732,864.83,864.19,3.3861655]
[1757206709942,0.2015732,864.83,864.18,3.3861655]
[1757206710844,0.2015732,864.83,864.19,3.3861655]
[1757206711144,0.2015732,864.83,864.18,3.3861655]
[1757206713547,0.2015732,864.83,864.18,2.60560549]
[1757206714147,0.2015732,864.83,864.19,2.60560549]
[1757206714447,0.2015732,864.83,864.23,2.60560549]
[1757206726957,0.2015732,864.83,864.21,2.60560549]
[1757206727151,0.2015732,864.83,864.2,2.60560549]
[1757206727452,0.2015732,864.83,864.21,2.60560549]
[1757206729954,0.2015732,864.83,864.2,2.60560549]
[1757206730856,0.2015732,864.83,864.21,2.60560549]
[1757206732063,0.2015732,864.83,864.22,2.60560549]
[1757206756191,0.2015732,864.83,864.22,1.15516015]
[1757206766199,0.2015732,864.83,864.22,0.3874112]
[1757206785817,0.2015732,864.83,864.22,0.13457835]
[1757206792116,0.78024134,865.21,864.22,0.13457835]
[1757206792521,0.20153526,864.68,864.22,0.13457835]
[1757206792717,0.78024134,865.23,864.22,0.13457835]
[1757206793817,0.20153292,864.98,864.22,0.13457835]
[1757206796024,0.20153292,864.98,864.22,0.04544946]
[1757206801824,0.20153292,864.98,863.67,2.6015819]
[1757206803028,0.20153292,864.98,863.69,2.6015819]
[1757206804628,0.20153292,864.98,863.68,2.6015819]
[1757206805128,0.20153292,864.98,863.71,2.6015819]
[1757206805830,0.20153292,864.98,863.7,2.6015819]
[1757206806229,0.20153292,864.98,863.9,2.6015819]
[1757206807733,0.20153292,864.98,863.97,2.6015819]
[1757206808938,0.20153292,864.98,863.72,2.6015819]
[1757206810538,0.20153292,864.98,863.73,2.6015819]
[1757206813037,0.20153292,864.98,863.69,2.6015819]
[1757206815540,0.20153292,864.98,863.7,2.6015819]
[1757206815941,0.20153292,864.98,864.21,1.5663519]
[1757206819143,0.20153292,864.98,864.14,1.5663519]
[1757206819539,0.20153292,864.98,864.13,1.5663519]
[1757206819939,0.20153292,864.98,864.07,1.5663519]
[1757206820441,0.20153292,864.98,864.06,1.5663519]
[1757206820943,0.20153292,864.98,864.07,1.5663519]
[1757206821243,0.20153292,864.98,864.06,1.5663519]
[1757206822139,0.20153292,864.98,864.05,1.5663519]
[1757206822545,0.20153292,864.98,864.07,1.0432782]
[1757206822844,0.20153292,864.98,864.07,2.6096301]
[1757206823240,0.20153292,864.98,864.07,2.59150012]
[1757206838355,0.20153292,864.98,864.05,1.5663519]
[1757206841155,0.20153292,864.98,864.06,1.5663519]
[1757206841955,0.20153292,864.98,864.08,1.5663519]
[1757206843260,0.20153292,864.98,864.06,1.5663519]
[1757206843460,0.20153292,864.98,864.05,1.5663519]
[1757206846962,0.20153292,864.98,864.15,1.5663519]
[1757206853564,0.20153292,864.98,864.15,2.608531]
[1757206856861,0.20153292,864.98,864.11,2.608531]
[1757206857062,0.20153292,864.98,864.1,2.608531]
[1757206863967,0.20153292,864.98,864.09,2.608531]
[1757206876379,0.20153292,864.98,864.1,2.608531]
[1757206876978,0.20153292,864.98,864.09,2.608531]
[1757206881479,0.20153292,864.98,864.09,1.1578791]
[1757206884282,0.20153292,864.98,863.52,2.6015819]
[1757206884785,0.20153292,864.98,863.53,2.6015819]
[1757206885383,0.20153292,864.98,863.55,2.6015819]
[1757206887888,0.20153292,864.98,863.21,3.6434488]
[1757206887889,0.20153292,864.98,863.56,2.6015819]
[1757206888387,0.20153292,864.98,863.57,2.6015819]
[1757206888985,0.20153292,864.98,863.55,2.6015819]
[1757206891491,0.20153292,864.98,863.45,2.6015819]
[1757206893194,0.20153292,864.98,863.51,2.6015819]
[1757206893798,0.20153292,864.98,863.62,2.6015819]
[1757206894200,0.20153292,864.98,863.63,2.6015819]
[1757206894695,0.20153292,864.98,863.62,2.6015819]
[1757206895200,0.20153292,864.98,863.63,2.6015819]
[1757206898900,0.20153292,864.98,863.61,2.6015819]
[1757206899900,0.20153292,864.98,863.6,2.6015819]
[1757206901401,0.20153292,864.98,863.74,2.6015819]
[1757206901599,0.20153292,864.98,864.1,1.5652865]
[1757206906502,0.20153292,864.98,864.07,1.5652865]
[1757206906707,0.20153292,864.98,863.77,2.6015819]
[1757206906708,0.20153292,864.98,864.01,1.5652865]
[1757206911011,0.20153292,864.98,863.98,1.5652865]
[1757206911711,0.20153292,864.98,864.04,1.0436341]
[1757206923121,0.20153292,864.98,864.04,2.6089206]